bitfinex-derivatives/quotes_BTCF0:USTF0_20241120
["timestamp","ask_amount","ask_price","bid_price","bid_amount"]
[1732125005768,0.083329,94179.0,94178.0,0.62716726]
[1732125005973,0.053029,94179.0,94178.0,0.62716726]
[1732125006372,0.053029,94179.0,94178.0,0.52624]
[1732125006876,0.053029,94179.0,94171.0,0.3608]
[1732125007081,0.053029,94179.0,94172.0,0.16544]
[1732125007288,0.053032,94173.0,94172.0,0.16544]
[1732125009477,0.053029,94179.0,94171.0,0.39239103]
[1732125009478,0.053033,94172.0,94171.0,0.39239103]
[1732125009676,0.053033,94172.0,94171.0,0.03159103]
[1732125009880,0.053033,94172.0,94164.0,0.3608]
[1732125010082,0.053037,94165.0,94164.0,0.3608]
[1732125010771,0.053037,94165.0,94164.0,0.52624]
[1732125011376,0.053037,94165.0,94164.0,0.3608]
[1732125011676,0.053037,94165.0,94154.0,0.16544]
[1732125011677,0.053041,94157.0,94154.0,0.16544]
[1732125011871,0.053041,94157.0,94154.0,0.13300936]
[1732125011872,0.053042,94155.0,94154.0,0.13300936]
[1732125012389,0.053042,94155.0,94154.0,0.29844936]
[1732125012683,0.053042,94155.0,94154.0,0.13300936]
[1732125013185,0.06430436,94155.0,94154.0,0.13300936]
[1732125013373,0.053041,94158.0,94154.0,0.55257662]
[1732125013572,0.053036,94166.0,94163.0,0.15396526]
[1732125013784,0.053036,94166.0,94165.0,0.3608]
[1732125014273,0.053036,94166.0,94165.0,0.6794]
[1732125014478,0.0301,94181.0,94166.0,0.053036]
[1732125014680,0.0301,94181.0,94180.0,0.3608]
[1732125014984,0.053028,94181.0,94180.0,0.20169983]
[1732125016972,0.053028,94181.0,94177.0,0.15852]
[1732125016973,0.053029,94178.0,94177.0,0.15852]
[1732125017189,0.05304,94160.0,94159.0,0.3608]
[1732125017481,0.053041,94157.0,94156.0,0.10092726]
[1732125017681,0.053041,94157.0,94156.0,1.60092726]
[1732125018181,0.053041,94157.0,94156.0,0.10092726]
[1732125019289,0.053041,94157.0,94156.0,0.13254548]
[1732125019487,0.053041,94157.0,94156.0,0.03161822]
[1732125019678,0.053044,94152.0,94151.0,0.15852]
[1732125020990,0.053044,94152.0,94151.0,0.18995009]
[1732125022786,0.053044,94152.0,94151.0,0.03143009]
[1732125022991,0.053041,94157.0,94150.0,0.10092726]
[1732125023196,0.053045,94151.0,94150.0,0.13249446]
[1732125023376,0.053045,94151.0,94150.0,0.49329446]
[1732125023889,0.053043,94154.0,94150.0,0.49329446]
[1732125024087,0.0049,94179.0,94153.0,0.20185452]
[1732125024387,0.053033,94171.0,94159.0,0.3608]
[1732125024590,0.053035,94168.0,94167.0,0.3608]
[1732125024792,0.053035,94168.0,94167.0,0.51932]
[1732125025583,0.053035,94168.0,94167.0,0.25944726]
[1732125026585,0.053035,94168.0,94167.0,0.29194818]
[1732125027781,0.053026,94184.0,94167.0,0.29194818]
[1732125027782,0.053033,94172.0,94167.0,0.29194818]
[1732125027986,0.053033,94172.0,94171.0,0.46172726]
[1732125028392,0.053023,94190.0,94171.0,0.78028726]
[1732125028591,0.053025,94185.0,94184.0,0.10092726]
[1732125028793,0.053025,94185.0,94184.0,0.25944726]
[1732125030300,0.053025,94185.0,94184.0,0.15852]
[1732125030797,0.053028,94181.0,94180.0,0.3608]
[1732125031385,0.053028,94181.0,94180.0,0.39250285]
[1732125032985,0.053028,94181.0,94180.0,0.03170285]
[1732125033190,0.0324,94184.0,94178.0,0.15852]
[1732125033497,0.053029,94179.0,94178.0,0.15852]
[1732125034701,0.053029,94179.0,94178.0,0.51932]
[1732125035201,0.053029,94179.0,94178.0,0.49431999]
[1732125035403,0.053029,94179.0,94178.0,0.52587934]
[1732125037704,0.053022,94192.0,94178.0,1.02281024]
[1732125038006,0.053023,94190.0,94189.0,0.3608]
[1732125040106,0.1,94200.0,94189.0,0.3608]
[1732125040307,0.053022,94192.0,94189.0,0.3608]
[1732125040606,0.1,94200.0,94189.0,0.3608]
[1732125040809,0.153017,94200.0,94199.0,0.3608]
[1732125041399,0.153017,94200.0,94199.0,0.46172726]
[1732125041600,0.1,94200.0,94199.0,0.46172726]
[1732125041802,0.06781642,94200.0,94199.0,0.46172726]
[1732125042202,0.12083342,94200.0,94199.0,0.3608]
[1732125042515,0.053023,94190.0,94189.0,0.3608]
[1732125042707,0.053023,94190.0,94189.0,0.51928]
[1732125042906,0.053023,94190.0,94189.0,0.99414243]
[1732125043206,0.053023,94190.0,94189.0,0.55065996]
[1732125043402,0.053023,94190.0,94189.0,0.39217996]
[1732125043805,0.053023,94190.0,94189.0,0.54697996]
[1732125044003,0.053023,94190.0,94189.0,0.39217996]
[1732125044409,0.053023,94190.0,94189.0,0.03137996]
[1732125044604,0.053025,94186.0,94184.0,0.44347736]
[1732125044816,0.053025,94185.0,94184.0,0.44347736]
[1732125045110,0.053027,94183.0,94182.0,0.03258845]
[1732125045411,0.053028,94181.0,94180.0,0.1548]
[1732125046105,0.053028,94181.0,94180.0,0.18742033]
[1732125047709,0.053028,94181.0,94180.0,0.03262033]
[1732125048006,0.053028,94180.0,94179.0,0.3608]
[1732125048210,0.053032,94174.0,94173.0,0.1548]
[1732125049014,0.053032,94174.0,94173.0,0.03220242]
[1732125049211,0.053032,94174.0,94164.0,0.325219]
[1732125049409,0.053032,94174.0,94163.0,0.5156]
[1732125049410,0.0302,94173.0,94163.0,0.54755371]
[1732125049602,0.053033,94172.0,94171.0,0.38030265]
[1732125049808,0.053033,94172.0,94171.0,0.38030391]
[1732125050109,0.053033,94172.0,94163.0,0.54755371]
[1732125050110,0.053034,94170.0,94169.0,0.37430391]
[1732125050309,0.053037,94164.0,94156.0,0.1548]
[1732125050609,0.053037,94164.0,94156.0,0.48079799]
[1732125050800,0.053041,94157.0,94156.0,0.1548]
[1732125051001,0.053041,94157.0,94156.0,0.48079799]
[1732125051202,0.053041,94157.0,94156.0,0.1548]
[1732125052212,0.053041,94157.0,94156.0,0.48079799]
[1732125052411,0.10092726,94178.0,94156.0,0.48079799]
[1732125052412,0.057925,94186.0,94156.0,0.5156]
[1732125052610,0.057925,94186.0,94165.0,0.3608]
[1732125052611,0.0313,94183.0,94165.0,0.3608]
[1732125052813,0.053036,94166.0,94165.0,0.3608]
[1732125053204,0.0313,94183.0,94165.0,0.3608]
[1732125053403,0.084327,94183.0,94182.0,0.3608]
[1732125053607,0.053032,94174.0,94173.0,0.46172726]
[1732125054001,0.053023,94190.0,94173.0,0.90567726]
[1732125054208,0.0304,94193.0,94173.0,0.90567726]
[1732125054209,0.053028,94181.0,94180.0,0.10092726]
[1732125055514,0.053026,94184.0,94180.0,0.10092726]
[1732125055813,0.053026,94184.0,94183.0,0.3608]
[1732125056203,0.0313,94198.0,94183.0,0.3608]
[1732125056204,0.053023,94189.0,94183.0,0.3608]
[1732125056519,0.053021,94193.0,94188.0,0.54487726]
[1732125056819,0.053021,94193.0,94192.0,0.10092726]
[1732125058908,0.053018,94198.0,94192.0,0.10092726]
[1732125059102,0.053018,94198.0,94197.0,0.3608]
[1732125059710,0.06781642,94200.0,94197.0,0.3608]
[1732125060013,0.06781642,94200.0,94199.0,0.10092726]
[1732125060210,0.06781642,94200.0,94199.0,0.26216726]
[1732125060612,0.06781642,94200.0,94199.0,1.76216726]
[1732125060819,0.06781642,94200.0,94199.0,2.20579501]
[1732125061015,0.06781642,94200.0,94199.0,1.76216726]
[1732125061519,0.053009,94216.0,94199.0,2.12296726]
[1732125061717,0.053009,94216.0,94215.0,0.10092726]
[1732125062908,0.033,94231.0,94213.0,0.3608]
[1732125063109,0.053009,94214.0,94213.0,0.3608]
[1732125063514,0.033,94231.0,94213.0,0.3608]
[1732125063713,0.053004,94223.0,94222.0,0.10092726]
[1732125065113,0.053004,94223.0,94222.0,0.09892726]
[1732125065827,0.053002,94227.0,94222.0,0.09892726]
[1732125066029,0.053003,94225.0,94222.0,0.09892726]
[1732125066324,0.0333,94243.0,94222.0,0.09892726]
[1732125066523,0.053,94230.0,94229.0,0.3608]
[1732125066717,0.0333,94243.0,94229.0,0.46172726]
[1732125066919,0.053,94231.0,94229.0,0.46172726]
[1732125067117,0.053,94230.0,94229.0,0.46172726]
[1732125067313,0.053,94230.0,94229.0,0.3608]
[1732125067526,0.15392726,94230.0,94229.0,0.3608]
[1732125067834,0.053,94230.0,94229.0,0.3608]
[1732125068421,0.053,94230.0,94229.0,0.39307598]
[1732125070321,0.053,94230.0,94229.0,0.03227598]
[1732125070630,0.053011,94211.0,94210.0,0.3608]
[1732125070828,0.053013,94208.0,94207.0,0.1612]
[1732125071026,0.053014,94205.0,94199.0,0.00056]
[1732125071224,0.053014,94205.0,94194.0,0.10092726]
[1732125071225,0.053014,94205.0,94203.0,0.1612]
[1732125071622,0.053009,94215.0,94209.0,0.053012]
[1732125071922,0.053008,94216.0,94214.0,0.3608]
[1732125072127,0.053008,94216.0,94215.0,0.10092726]
[1732125072527,0.053006,94220.0,94215.0,0.10092726]
[1732125072733,0.053003,94226.0,94219.0,0.10092726]
[1732125073027,0.053003,94226.0,94225.0,0.3608]
[1732125073221,0.053003,94226.0,94225.0,0.52196]
[1732125076422,0.053003,94226.0,94225.0,0.55405837]
[1732125077828,0.053003,94226.0,94225.0,0.39289837]
[1732125078024,0.053003,94226.0,94225.0,0.54721837]
[1732125079331,0.052999,94232.0,94225.0,0.54721837]
[1732125079537,0.052999,94232.0,94231.0,0.10092726]
[1732125080038,0.053,94230.0,94225.0,0.54721837]
[1732125080435,0.053001,94228.0,94225.0,0.54721837]
[1732125080632,0.0315,94238.0,94225.0,0.54721837]
[1732125080834,0.052995,94239.0,94234.0,0.3608]
[1732125081134,0.0332,94248.0,94238.0,0.10092726]
[1732125081338,0.052995,94240.0,94238.0,0.10092726]
[1732125081537,0.0332,94248.0,94238.0,0.10092726]
[1732125081727,0.052992,94244.0,94243.0,0.3608]
[1732125082726,0.052992,94244.0,94243.0,0.51512]
[1732125083731,0.052992,94244.0,94238.0,0.10092726]
[1732125083930,0.052992,94244.0,94234.0,0.3608]
[1732125083931,0.052997,94235.0,94234.0,0.3608]
[1732125084133,0.052997,94235.0,94234.0,0.51512]
[1732125085136,0.052997,94235.0,94234.0,0.3608]
[1732125085331,0.052997,94235.0,94234.0,0.51508]
[1732125085643,0.0332,94248.0,94234.0,0.51508]
[1732125085837,0.052991,94247.0,94242.0,0.3608]
[1732125086136,0.052991,94247.0,94246.0,0.10092726]
[1732125086541,0.3608,94253.0,94246.0,0.10092726]
[1732125086542,0.00072,94253.0,94246.0,0.10092726]
[1732125086745,0.052987,94253.0,94252.0,0.3608]
[1732125087740,0.052984,94258.0,94252.0,0.3608]
[1732125088045,0.052984,94258.0,94257.0,0.10092726]
[1732125089551,0.052984,94258.0,94252.0,0.3608]
[1732125089747,0.052987,94253.0,94252.0,0.39313062]
[1732125090350,0.052987,94253.0,94252.0,0.03233062]
[1732125090538,0.052991,94246.0,94245.0,0.14776]
[1732125090851,0.052991,94246.0,94245.0,0.24868726]
[1732125091146,0.052991,94246.0,94245.0,0.14776]
[1732125091352,0.052991,94246.0,94238.0,0.10092726]
[1732125091353,0.052993,94243.0,94238.0,0.10092726]
[1732125091649,0.052993,94243.0,94242.0,0.53970654]
[1732125092040,0.36152,94257.0,94242.0,0.53970654]
[1732125092241,0.36152,94257.0,94254.0,0.10092726]
[1732125092242,0.052986,94255.0,94254.0,0.10092726]
[1732125094640,0.052986,94255.0,94254.0,0.14772]
[1732125095149,0.052986,94255.0,94254.0,0.14272]
[1732125096650,0.052986,94255.0,94254.0,0.17484446]
[1732125096835,0.052986,94255.0,94254.0,0.03212446]
[1732125097041,0.3616,94260.0,94253.0,0.14772]
[1732125097241,0.052987,94254.0,94253.0,0.14772]
[1732125098047,0.052987,94254.0,94250.0,0.3608]
[1732125098048,0.052988,94251.0,94250.0,0.3608]
[1732125098355,0.052988,94251.0,94250.0,0.50852]
[1732125101058,0.052988,94251.0,94250.0,0.54015938]
[1732125104049,0.10092726,94289.0,94250.0,0.54015938]
[1732125104251,0.36156,94273.0,94266.0,0.10092726]
[1732125104462,0.052979,94267.0,94266.0,0.24864726]
[1732125110152,0.052979,94267.0,94266.0,0.23264726]
[1732125110756,0.052979,94267.0,94266.0,0.26485252]
[1732125115479,0.052979,94267.0,94266.0,0.17992526]
[1732125116570,0.052979,94267.0,94266.0,0.28085252]
[1732125116967,0.052979,94267.0,94266.0,0.13313252]
[1732125117158,0.052979,94267.0,94266.0,0.28085252]
[1732125118664,0.413764,94295.0,94266.0,0.38177978]
[1732125118868,0.052966,94291.0,94290.0,0.3608]
[1732125119072,0.052969,94286.0,94285.0,0.14388]
[1732125119260,0.052972,94280.0,94279.0,0.3608]
[1732125119464,0.052972,94280.0,94279.0,0.50468]
[1732125119868,0.052972,94280.0,94279.0,2.00468]
[1732125120264,0.052972,94280.0,94279.0,0.3608]
[1732125120575,0.052972,94280.0,94279.0,0.50468]
[1732125121671,0.052973,94279.0,94278.0,0.00064]
[1732125121972,0.052973,94278.0,94271.0,0.00159104]
[1732125122282,0.052989,94250.0,94249.0,0.0006]
[1732125122479,0.052989,94250.0,94246.0,0.63353078]
[1732125122480,0.052991,94246.0,94229.0,0.3608]
[1732125122665,0.05299,94248.0,94247.0,0.10092726]
[1732125123064,0.052991,94247.0,94246.0,0.00056]
[1732125123472,0.052991,94247.0,94243.0,0.3608]
[1732125123473,0.052992,94244.0,94243.0,0.3608]
[1732125127578,0.052992,94244.0,94242.0,0.00011266]
[1732125127579,0.3608,94244.0,94242.0,0.00011266]
[1732125127768,0.3608,94244.0,94233.0,0.00159155]
[1732125127769,0.371313,94243.0,94233.0,0.00159155]
[1732125128079,0.371313,94243.0,94221.0,0.0006]
[1732125128080,0.053005,94222.0,94221.0,0.0006]
[1732125128268,0.053005,94222.0,94215.0,0.14392]
[1732125128269,0.053008,94216.0,94215.0,0.14392]
[1732125128670,0.053008,94216.0,94208.0,0.00056]
[1732125128671,0.053012,94209.0,94208.0,0.00056]
[1732125128880,0.053012,94209.0,94208.0,0.03178671]
[1732125129177,0.053008,94216.0,94206.0,0.14392]
[1732125129178,0.053013,94207.0,94206.0,0.14392]
[1732125129374,0.413813,94207.0,94206.0,0.14392]
[1732125130372,0.51474026,94207.0,94202.0,0.0001072]
[1732125130677,0.053015,94203.0,94202.0,0.0001072]
[1732125131379,0.053024,94188.0,94186.0,0.02120395]
[1732125131580,0.15395126,94188.0,94186.0,0.02120395]
[1732125131783,0.15395126,94188.0,94187.0,5.8e-07]
[1732125132079,0.15395126,94188.0,94169.0,0.3608]
[1732125132080,0.053024,94188.0,94169.0,0.3608]
[1732125132279,0.053034,94170.0,94169.0,0.3608]
[1732125132478,0.053034,94170.0,94169.0,0.39268333]
[1732125137371,0.053034,94170.0,94169.0,0.53664333]
[1732125137776,0.053034,94170.0,94169.0,0.39268333]
[1732125138083,0.053029,94179.0,94169.0,0.85520333]
[1732125138285,0.053029,94179.0,94178.0,0.46172726]
[1732125138979,0.00010625,94187.0,94178.0,0.78028726]
[1732125139181,0.00010625,94187.0,94186.0,0.46172726]
[1732125139488,0.053022,94191.0,94186.0,0.60572726]
[1732125139681,0.053019,94196.0,94195.0,0.3608]
[1732125140075,0.053019,94196.0,94195.0,0.46172726]
[1732125140591,0.053009,94215.0,94196.0,0.31848]
[1732125140791,0.053009,94214.0,94213.0,0.3608]
[1732125140988,0.053009,94214.0,94213.0,0.5048]
[1732125141383,0.052996,94238.0,94213.0,0.82324]
[1732125141582,0.052996,94237.0,94235.0,0.3608]
[1732125141779,0.053001,94229.0,94228.0,0.144]
[1732125142996,0.00013561,94236.0,94228.0,0.144]
[1732125142997,0.00013561,94236.0,94228.0,0.14396]
[1732125143293,0.052997,94235.0,94234.0,0.10092726]
[1732125143676,0.00013561,94236.0,94234.0,0.10092726]
[1732125143986,0.00013561,94236.0,94235.0,0.3608]
[1732125144188,0.052991,94246.0,94235.0,0.3608]
[1732125144495,0.052991,94246.0,94245.0,0.46172726]
[1732125144690,0.052991,94246.0,94245.0,0.60568726]
[1732125144884,0.052991,94246.0,94245.0,0.50476]
[1732125146487,0.052991,94246.0,94245.0,0.60568726]
[1732125146794,0.052983,94262.0,94245.0,0.60568726]
[1732125146795,0.052988,94252.0,94245.0,0.50476]
[1732125146983,0.052988,94252.0,94251.0,0.3608]
[1732125147489,0.0049,94274.0,94251.0,0.67908]
[1732125147681,0.00076,94280.0,94264.0,0.3608]
[1732125147880,0.052969,94286.0,94273.0,0.3608]
[1732125148394,0.052975,94276.0,94273.0,0.3608]
[1732125148595,0.052975,94275.0,94273.0,0.3608]
[1732125150190,0.05298,94266.0,94265.0,0.14396]
[1732125151387,0.05298,94266.0,94265.0,0.17626215]
[1732125151589,0.052978,94270.0,94265.0,0.19745225]
[1732125151791,0.0049,94289.0,94275.0,0.15380332]
[1732125151984,0.052968,94288.0,94287.0,0.3608]
[1732125153094,0.052977,94271.0,94269.0,0.3608]
[1732125155192,0.052978,94270.0,94269.0,0.3608]
[1732125155388,0.0049,94291.0,94269.0,0.51460332]
[1732125155684,0.052973,94278.0,94277.0,0.3608]
[1732125159502,0.052973,94278.0,94277.0,0.51784]
[1732125160904,0.052973,94278.0,94277.0,0.15704]
[1732125163095,0.052973,94278.0,94277.0,0.18959417]
[1732125166095,0.052973,94278.0,94277.0,0.03255417]
[1732125166296,0.052973,94278.0,94277.0,0.157]
[1732125166792,0.052977,94271.0,94270.0,0.3608]
[1732125166991,0.052977,94271.0,94270.0,0.39285084]
[1732125170207,0.052977,94271.0,94270.0,0.03205084]
[1732125170406,0.052977,94271.0,94263.0,0.35624]
[1732125170590,0.052981,94264.0,94263.0,0.35624]
[1732125170795,0.052981,94264.0,94263.0,0.03155333]
[1732125170995,0.052981,94264.0,94260.0,0.15704]
[1732125171295,0.052983,94261.0,94260.0,0.15704]
[1732125173395,0.052983,94261.0,94260.0,0.31081599]
[1732125178118,0.052983,94261.0,94260.0,0.34201599]
[1732125178314,0.052972,94280.0,94260.0,0.34201599]
[1732125178506,0.052973,94279.0,94278.0,0.3608]
[1732125178709,0.052973,94279.0,94278.0,0.51784]
[1732125181609,0.052973,94279.0,94278.0,0.3608]
[1732125181813,0.052973,94279.0,94278.0,0.5178]
[1732125183116,0.052973,94279.0,94278.0,0.54929549]
[1732125183512,0.052973,94279.0,94278.0,0.18849549]
[1732125183705,0.06492971,94279.0,94278.0,0.03149549]
[1732125183905,0.052974,94276.0,94275.0,0.157]
[1732125184106,0.052978,94270.0,94269.0,0.3608]
[1732125184306,0.052978,94270.0,94250.0,0.3608]
[1732125184307,0.052985,94258.0,94250.0,0.3608]
[1732125184508,0.052988,94252.0,94251.0,0.157]
[1732125186815,0.06493645,94252.0,94251.0,0.157]
[1732125188310,0.052988,94252.0,94251.0,0.157]
[1732125189213,0.06494767,94252.0,94251.0,0.157]
[1732125189814,0.0649479,94252.0,94251.0,0.157]
[1732125191030,0.052988,94251.0,94250.0,0.3933933]
[1732125191231,0.0649479,94251.0,94250.0,0.5482733]
[1732125191436,0.052988,94251.0,94250.0,0.5482733]
[1732125191724,0.11366984,94253.0,94250.0,0.5796733]
[1732125191921,0.16665684,94253.0,94252.0,0.3608]
[1732125192128,0.16665684,94253.0,94252.0,1.8608]
[1732125192516,0.16665684,94253.0,94252.0,0.3608]
[1732125194015,0.19795684,94253.0,94252.0,0.3608]
[1732125194218,0.052988,94251.0,94250.0,0.0325933]
[1732125194423,0.19795684,94253.0,94248.0,0.15488]
[1732125194424,0.052989,94249.0,94248.0,0.15488]
[1732125194619,0.052991,94246.0,94245.0,0.03267886]
[1732125195425,0.052991,94246.0,94245.0,0.13343177]
[1732125195821,0.052991,94246.0,94245.0,0.06317886]
[1732125197223,0.052991,94246.0,94245.0,0.03267886]
[1732125198333,0.413791,94246.0,94245.0,0.03267886]
[1732125199921,0.413791,94246.0,94245.0,0.00159162]
[1732125200128,0.052991,94246.0,94245.0,0.00159162]
[1732125200531,0.052991,94246.0,94242.0,0.0312357]
[1732125200532,0.052993,94243.0,94242.0,0.0312357]
[1732125200732,0.053,94230.0,94229.0,0.3608]
[1732125201140,0.053001,94229.0,94228.0,8.032e-05]
[1732125201637,0.053001,94229.0,94210.0,0.51568]
[1732125201638,0.053005,94222.0,94210.0,0.51568]
[1732125201827,0.053008,94216.0,94215.0,0.3608]
[1732125202734,0.05310289,94216.0,94215.0,0.3608]
[1732125203131,0.053011,94211.0,94210.0,0.18707787]
[1732125203329,0.053015,94203.0,94202.0,0.00065257]
[1732125203726,0.053015,94203.0,94202.0,9.257e-05]
[1732125205627,0.52535152,94203.0,94202.0,5.7e-07]
[1732125205831,0.05302,94195.0,94194.0,8.6e-07]
[1732125206033,0.20687652,94195.0,94194.0,8.6e-07]
[1732125206228,0.52535652,94195.0,94194.0,8.6e-07]
[1732125207028,0.7323,94195.0,94194.0,8.6e-07]
[1732125207336,0.053024,94187.0,94186.0,0.15385652]
[1732125208529,0.053024,94187.0,94186.0,0.18578784]
[1732125208845,0.053024,94187.0,94186.0,0.03193132]
[1732125209041,0.03249867,94196.0,94184.0,0.3608]
[1732125209340,0.05302,94195.0,94193.0,0.3608]
[1732125210331,0.03,94204.0,94193.0,0.3608]
[1732125210332,0.053015,94203.0,94193.0,0.3608]
[1732125210630,0.05302,94194.0,94193.0,0.3608]
[1732125210937,0.05302,94194.0,94192.0,0.15496]
[1732125211329,0.00849,94193.0,94192.0,0.51576]
[1732125212331,0.00849,94193.0,94192.0,0.3608]
[1732125213748,0.053024,94187.0,94186.0,0.1616]
[1732125214132,0.053024,94187.0,94186.0,0.5224]
[1732125214530,0.053024,94187.0,94186.0,0.1616]
[1732125214839,0.053024,94187.0,94186.0,0.5224]
[1732125215435,0.053024,94187.0,94184.0,0.03185777]
[1732125215436,0.008,94187.0,94184.0,0.03185777]
[1732125215635,0.05303,94177.0,94176.0,0.3608]
[1732125215844,0.05303,94177.0,94176.0,0.39263545]
[1732125217745,0.05303,94177.0,94176.0,0.54649197]
[1732125219043,0.05303,94177.0,94176.0,0.86505197]
[1732125220562,0.06152,94177.0,94176.0,0.39263545]
[1732125222348,0.06152,94177.0,94176.0,0.3608]
[1732125222545,0.053033,94172.0,94171.0,0.00010328]
[1732125222751,0.053033,94172.0,94171.0,0.03276954]
[1732125222942,0.053033,94172.0,94171.0,0.00010328]
[1732125223752,0.413833,94172.0,94171.0,0.00010328]
[1732125223947,0.413833,94172.0,94156.0,0.3608]
[1732125223948,0.05304,94159.0,94156.0,0.3608]
[1732125224253,0.053041,94157.0,94156.0,0.3608]
[1732125224647,0.053041,94157.0,94156.0,0.3922731]
[1732125225138,0.053041,94157.0,94156.0,0.7530731]
[1732125225340,0.053041,94157.0,94156.0,0.9213531]
[1732125226050,0.05116497,94157.0,94156.0,0.9213531]
[1732125227456,0.12550497,94157.0,94156.0,0.9213531]
[1732125227641,0.12550497,94157.0,94156.0,0.5605531]
[1732125228954,0.12550497,94157.0,94156.0,0.3922731]
[1732125230155,0.13820942,94157.0,94156.0,0.3822731]
[1732125231250,0.1586003,94157.0,94156.0,0.3822731]
[1732125232050,0.12550497,94157.0,94156.0,0.3822731]
[1732125232361,0.15858519,94157.0,94156.0,0.3822731]
[1732125234153,0.16658519,94157.0,94156.0,0.3822731]
[1732125234955,0.16658519,94157.0,94156.0,0.5505931]
[1732125234956,0.14622813,94157.0,94156.0,0.5505931]
[1732125235264,0.16665129,94157.0,94156.0,0.5505931]
[1732125235458,0.14622813,94157.0,94156.0,0.5505931]
[1732125235758,0.00849,94177.0,94156.0,1.1691931]
[1732125235953,0.00849,94177.0,94176.0,0.7216]
[1732125236147,0.06152,94177.0,94176.0,0.7216]
[1732125236358,0.00849,94177.0,94176.0,0.7216]
[1732125236657,0.02278,94188.0,94176.0,0.7216]
[1732125236658,0.053026,94185.0,94176.0,1.04016]
[1732125236867,0.053026,94185.0,94184.0,0.50616652]
[1732125238463,0.053026,94185.0,94184.0,0.35231]
[1732125239660,0.01883,94186.0,94184.0,0.35231]
[1732125239863,0.01883,94186.0,94185.0,0.31852]
[1732125241063,0.01883,94186.0,94185.0,2.171545]
[1732125241260,0.053019,94196.0,94195.0,0.14642652]
[1732125241464,0.053019,94196.0,94195.0,0.50722652]
[1732125242355,0.053017,94201.0,94195.0,0.50722652]
[1732125242556,0.053019,94197.0,94196.0,0.3608]
[1732125243352,0.053019,94197.0,94196.0,0.51465652]
[1732125243863,0.01698,94198.0,94196.0,0.51465652]
[1732125244065,0.01698,94198.0,94196.0,0.54635652]
[1732125244365,0.00844103,94198.0,94196.0,0.54635652]
[1732125245768,0.053015,94204.0,94196.0,0.54635652]
[1732125246067,0.00849,94203.0,94196.0,0.54635652]
[1732125246259,0.053013,94207.0,94196.0,0.54635652]
[1732125246462,0.053011,94210.0,94206.0,0.51465652]
[1732125246771,0.053011,94210.0,94209.0,0.3608]
[1732125246965,0.053011,94210.0,94209.0,0.52908]
[1732125248057,0.053011,94210.0,94209.0,0.52904]
[1732125248557,0.053011,94210.0,94209.0,0.56103023]
[1732125249668,0.03169926,94210.0,94209.0,0.56103023]
[1732125250559,9.489e-05,94216.0,94209.0,0.56103023]
[1732125250767,0.033,94222.0,94215.0,0.15385652]
[1732125250979,0.086005,94222.0,94221.0,0.3608]
[1732125251766,0.053005,94222.0,94221.0,0.3608]
[1732125252360,8.787e-05,94227.0,94209.0,0.93922897]
[1732125252563,0.053011,94210.0,94209.0,0.90667874]
[1732125253273,0.053011,94210.0,94209.0,0.73843874]
[1732125253464,0.053011,94210.0,94209.0,0.90667874]
[1732125253974,0.053011,94210.0,94209.0,0.93790722]
[1732125254278,0.053011,94210.0,94209.0,0.39202848]
[1732125254582,0.053011,94210.0,94209.0,0.03122848]
[1732125254761,0.053016,94201.0,94200.0,0.3608]
[1732125254965,0.05301,94212.0,94199.0,0.17192]
[1732125254966,0.053017,94200.0,94199.0,0.17192]
[1732125256065,0.053018,94199.0,94198.0,0.3608]
[1732125256265,0.053018,94199.0,94198.0,0.53272]
[1732125256870,0.053009,94215.0,94198.0,0.8512]
[1732125257073,0.053013,94207.0,94206.0,0.15385652]
[1732125258481,0.053013,94207.0,94198.0,0.59668]
[1732125258482,0.053018,94199.0,94198.0,0.59668]
[1732125258670,0.053018,94199.0,94198.0,0.53272]
[1732125259169,0.030983,94199.0,94198.0,0.53272]
[1732125260181,0.030983,94199.0,94198.0,0.3608]
[1732125262187,0.030983,94199.0,94197.0,0.03216215]
[1732125262188,0.053018,94198.0,94197.0,7.441e-05]
[1732125262385,0.146418,94198.0,94197.0,7.441e-05]
[1732125262887,0.053022,94191.0,94190.0,0.00159221]
[1732125263085,0.053029,94179.0,94178.0,0.50585911]
[1732125263383,0.413829,94179.0,94178.0,0.50585911]
[1732125263887,0.41394036,94179.0,94178.0,0.50585911]
[1732125264276,0.73250036,94179.0,94178.0,0.50585911]
[1732125265977,0.73250036,94179.0,94166.0,0.62805234]
[1732125265978,0.053036,94167.0,94166.0,0.00056]
[1732125266178,0.053036,94167.0,94160.0,0.00012074]
[1732125266179,0.053036,94167.0,94160.0,0.00068074]
[1732125266370,0.053039,94161.0,94160.0,0.00012074]
[1732125266571,0.053039,94161.0,94160.0,0.03209796]
[1732125274778,0.053039,94161.0,94148.0,0.3608]
[1732125274779,0.053046,94149.0,94148.0,0.3608]
[1732125275082,0.053051,94140.0,94139.0,0.10094281]
[1732125275890,0.053051,94140.0,94135.0,2.5e-07]
[1732125275891,0.053053,94136.0,94135.0,2.5e-07]
[1732125277092,0.00072,94137.0,94135.0,2.5e-07]
[1732125277287,0.053053,94137.0,94135.0,2.5e-07]
[1732125277879,0.053053,94136.0,94135.0,2.5e-07]
[1732125278591,0.05317994,94136.0,94135.0,2.5e-07]
[1732125281386,0.05317994,94136.0,94135.0,0.16548025]
[1732125281785,0.00012694,94136.0,94135.0,0.26642306]
[1732125281986,0.00012694,94136.0,94135.0,0.49300323]
[1732125282186,0.053042,94155.0,94154.0,0.10094281]
[1732125282794,0.3608,94171.0,94151.0,0.3608]
[1732125282795,0.053044,94152.0,94151.0,0.3608]
[1732125283300,0.05315065,94152.0,94151.0,0.3608]
[1732125284095,0.05994065,94152.0,94151.0,0.3608]
[1732125284986,0.053041,94158.0,94151.0,0.3608]
[1732125285195,0.0331,94187.0,94151.0,0.3608]
[1732125285196,0.3657,94183.0,94157.0,0.15412016]
[1732125285497,0.05304,94159.0,94158.0,0.19838]
[1732125286401,0.053038,94163.0,94158.0,0.19838]
[1732125286584,0.05316168,94166.0,94165.0,0.15412016]